{"text_format":"3","workbook":"xlsx","n_sheets":6,"sheets":["سجل مبيعات المكالمات","معلومات الاتصال بالعميل","قبل الاتصال","الاتصال للمرة الأولى","معلومات المبيعات","متابعة"],"not_rendered":{"external_links":1,"defined_names":13},"read":"whole","date_system":"1900"}

{"sheet":"سجل مبيعات المكالمات","index":0,"n_rows":13,"n_cols":7,"rows_kept":13}
[null," اسم الشركة"]
[null,"سجل مبيعات المكالمات"]
[null,"المكالمة رقم","العميل","الشركة","التاريخ","الوقت","الملاحظات"]
[null,1,"مختار سراف",{"$f":"IF(سجل_مبيعات_المكالمات[[#This Row],[العميل]]=\"\",\"\",IFERROR(VLOOKUP(سجل_مبيعات_المكالمات[[#This Row],[العميل]],معلومات_الاتصال_بالعميل[],2,0),\"Not Found\"))","v":"Proseware, Inc."},{"$f":"TODAY()-5","v":"2016-10-12"},"08:30:00"]
[null,2,"باسل كرازي",{"$f":"IF(سجل_مبيعات_المكالمات[[#This Row],[العميل]]=\"\",\"\",IFERROR(VLOOKUP(سجل_مبيعات_المكالمات[[#This Row],[العميل]],معلومات_الاتصال_بالعميل[],2,0),\"Not Found\"))","v":"Litware, Inc."},{"$f":"TODAY()-5","v":"2016-10-12"},"09:00:00"]
[null,3,"حامد ديب",{"$f":"IF(سجل_مبيعات_المكالمات[[#This Row],[العميل]]=\"\",\"\",IFERROR(VLOOKUP(سجل_مبيعات_المكالمات[[#This Row],[العميل]],معلومات_الاتصال_بالعميل[],2,0),\"Not Found\"))","v":"Northwind Traders"},"2016-10-12","09:30:00"]
[null,4,"عطاء بدخشي",{"$f":"IF(سجل_مبيعات_المكالمات[[#This Row],[العميل]]=\"\",\"\",IFERROR(VLOOKUP(سجل_مبيعات_المكالمات[[#This Row],[العميل]],معلومات_الاتصال_بالعميل[],2,0),\"Not Found\"))","v":"Lucerne Publishing"},"2016-10-12","10:00:00"]
[null,5,"ذكي الراوي",{"$f":"IF(سجل_مبيعات_المكالمات[[#This Row],[العميل]]=\"\",\"\",IFERROR(VLOOKUP(سجل_مبيعات_المكالمات[[#This Row],[العميل]],معلومات_الاتصال_بالعميل[],2,0),\"Not Found\"))","v":"Margie's Travel"},"2016-10-12","10:30:00"]
[null,6,"مختار سراف",{"$f":"IF(سجل_مبيعات_المكالمات[[#This Row],[العميل]]=\"\",\"\",IFERROR(VLOOKUP(سجل_مبيعات_المكالمات[[#This Row],[العميل]],معلومات_الاتصال_بالعميل[],2,0),\"Not Found\"))","v":"Proseware, Inc."},{"$f":"TODAY()-3","v":"2016-10-14"},"11:00:00"]
[null,7,"باسل كرازي",{"$f":"IF(سجل_مبيعات_المكالمات[[#This Row],[العميل]]=\"\",\"\",IFERROR(VLOOKUP(سجل_مبيعات_المكالمات[[#This Row],[العميل]],معلومات_الاتصال_بالعميل[],2,0),\"Not Found\"))","v":"Litware, Inc."},{"$f":"TODAY()-3","v":"2016-10-14"},"11:30:00"]
[null,8,"مختار سراف",{"$f":"IF(سجل_مبيعات_المكالمات[[#This Row],[العميل]]=\"\",\"\",IFERROR(VLOOKUP(سجل_مبيعات_المكالمات[[#This Row],[العميل]],معلومات_الاتصال_بالعميل[],2,0),\"Not Found\"))","v":"Proseware, Inc."},{"$f":"TODAY()-1","v":"2016-10-16"},"12:00:00"]
[null,9,"ذكي الراوي",{"$f":"IF(سجل_مبيعات_المكالمات[[#This Row],[العميل]]=\"\",\"\",IFERROR(VLOOKUP(سجل_مبيعات_المكالمات[[#This Row],[العميل]],معلومات_الاتصال_بالعميل[],2,0),\"Not Found\"))","v":"Margie's Travel"},{"$f":"TODAY()-1","v":"2016-10-16"},"12:30:00"]
[null,10,"ذكي الراوي",{"$f":"IF(سجل_مبيعات_المكالمات[[#This Row],[العميل]]=\"\",\"\",IFERROR(VLOOKUP(سجل_مبيعات_المكالمات[[#This Row],[العميل]],معلومات_الاتصال_بالعميل[],2,0),\"Not Found\"))","v":"Margie's Travel"},{"$f":"TODAY()","v":"2016-10-17"},"13:00:00"]

{"sheet":"معلومات الاتصال بالعميل","index":1,"n_rows":8,"n_cols":8,"rows_kept":8}
[null,{"$f":"CompanyName","v":" اسم الشركة"}]
[null,"معلومات الاتصال بالعميل"]
[null,"اسم العميل","اسم الشركة","العنوان","المدينة، الرمز البريدي للمنطقة","الهاتف الرئيسي","الهاتف الثانوي","البريد الإلكتروني"]
[null,"باسل كرازي","Litware, Inc.","100 Main St","Cherrytown, NH 123456","(541) 555-0135","(541) 555-0136","basel@litwareinc.com"]
[null,"عطاء بدخشي","Lucerne Publishing","567 Second Ave","Spaulding, NY 23456","(425) 555-0198","(425) 555-0199","ataa@lucernepublishing.com"]
[null,"ذكي الراوي","Margie's Travel","987 Orange St","Mountain View, IL 34567","(888) 555-0125","(888) 555-0126","zaki@margiestravel.com"]
[null,"حامد ديب","Northwind Traders","890 N 3rd Ave","Chatham, CA 45678","(541) 555-0175","(541) 555-0176","hamed@northwindtraders.com"]
[null,"مختار سراف","Proseware, Inc.","123 Major Dr","Shelbyville, MA 56789","(509) 555-0150","(509) 555-0151","mukhtar@proseware.com"]

{"sheet":"قبل الاتصال","index":2,"n_rows":13,"n_cols":3,"rows_kept":13}
[null,{"$f":"CompanyName","v":" اسم الشركة"}]
[null,"قائمة الاختيار الخاصة بمكالمات المبيعات"]
[null,"خانة الاختيار","قبل الاتصال"]
[null,null,"مراجعة محفوظات العميل"]
[null,null,"مراجعة محفوظات صاحب العمل للعميل"]
[null,null,"مراجعة الأولويات واستراتيجية المبيعات"]
[null,null,"إضافة عنصر"]
[null,null,"إضافة عنصر"]
[null,null,"إضافة عنصر"]
[null,null,"إضافة عنصر"]
[null,null,"إضافة عنصر"]
[null,null,"إضافة عنصر"]
[null,null,"إضافة عنصر"]

{"sheet":"الاتصال للمرة الأولى","index":3,"n_rows":13,"n_cols":3,"rows_kept":13}
[null,{"$f":"CompanyName","v":" اسم الشركة"}]
[null,"قائمة الاختيار الخاصة بمكالمات المبيعات"]
[null,"خانة الاختيار","الاتصال للمرة الأولى"]
[null,null,"اتصال مباشر بالشخص المناسب"]
[null,null,"مقدمة واضحة"]
[null,null,"إضافة عنصر"]
[null,null,"إضافة عنصر"]
[null,null,"إضافة عنصر"]
[null,null,"إضافة عنصر"]
[null,null,"إضافة عنصر"]
[null,null,"إضافة عنصر"]
[null,null,"إضافة عنصر"]
[null,null,"إضافة عنصر"]

{"sheet":"معلومات المبيعات","index":4,"n_rows":13,"n_cols":3,"rows_kept":13}
[null,{"$f":"CompanyName","v":" اسم الشركة"}]
[null,"قائمة الاختيار الخاصة بمكالمات المبيعات"]
[null,"خانة الاختيار","معلومات المبيعات"]
[null,null,"مقدمة واضحة ومقنعة عن المنتج/الخدمة"]
[null,null,"تغطية كافة الأساسيات"]
[null,null,"الإشارة إلى وجود الويب (على سبيل المثال، مواقع الويب والشبكات الاجتماعية)"]
[null,null,"إضافة عنصر"]
[null,null,"إضافة عنصر"]
[null,null,"إضافة عنصر"]
[null,null,"إضافة عنصر"]
[null,null,"إضافة عنصر"]
[null,null,"إضافة عنصر"]
[null,null,"إضافة عنصر"]

{"sheet":"متابعة","index":5,"n_rows":13,"n_cols":3,"rows_kept":13}
[null,{"$f":"CompanyName","v":" اسم الشركة"}]
[null,"قائمة الاختيار الخاصة بمكالمات المبيعات"]
[null,"خانة الاختيار","معلومات المتابعة"]
[null,null,"معلومات الاتصال بالعميل"]
[null,null,"المعلومات الشخصية للعميل"]
[null,null,"تفضيلات العملاء"]
[null,null,"هل تريد إعادة جدولة جهة اتصال؟"]
[null,null,"إجراء البيع؟"]
[null,null,"إضافة عنصر"]
[null,null,"إضافة عنصر"]
[null,null,"إضافة عنصر"]
[null,null,"إضافة عنصر"]
[null,null,"إضافة عنصر"]